[Event "Swiss Championship 2024"]
[Site "Flims"]
[Date "2024.07.16"]
[Round "4.5"]
[White "Stijve, Theo"]
[Black "Wyss, Jonas"]
[Result "1-0"]
[ECO "D87"]
[WhiteElo "2328"]
[BlackElo "2291"]
[Annotator "RC"]
[PlyCount "127"]
[EventDate "2024.07.10"]
[EventType "tourn"]
[EventCountry "SUI"]
[SourceTitle "playchess.com"]
[Source "ChessBase"]
[SourceQuality "1"]
[TimeControl "40/5400+30:1800+30"]

1. d4 {[%emt 0:00:02]} Nf6 {[%emt 0:00:24]} 2. c4 {[%emt 0:00:10]} g6 {[%emt 0:00:10]} 3. Nc3 {[%emt 0:00:25]} d5 {[%emt 0:00:31]} 4. cxd5 {[%emt 0:00:09]} Nxd5 {[%emt 0:00:13]} 5. e4 {[%emt 0:00:08]} Nxc3 {[%emt 0:00:14]} 6. bxc3 {[%emt 0:00:06]} Bg7 {[%emt 0:00:15]} 7. Bc4 {[%emt 0:00:13]} c5 {[%emt 0:01:00]} 8. Ne2 {[%emt 0:00:17]} Nc6 {[%emt 0:02:15]} 9. Be3 {[%emt 0:00:28]} O-O {[%emt 0:01:44]} 10. Rc1 {[%emt 0:00:23]} cxd4 {[%emt 0:00:46]} 11. cxd4 {[%emt 0:00:10]} Qa5+ {[%emt 0:00:15]} 12. Rc3 {[%emt 0:00:10]} Rd8 {[%emt 0:13:03]} 13. Qd2 {[%emt 0:00:36]} Be6 {[%emt 0:23:31]} 14. Bxe6 {[%emt 0:17:38]} fxe6 {[%emt 0:00:12]} 15. a3 {[%emt 0:00:38]} e5 {[%emt 0:11:09]} 16. d5 {[%emt 0:08:02]} Nd4 {[%emt 0:00:22]} 17. Bxd4 {[%emt 0:07:25]} exd4 {[%emt 0:00:11]} 18. Rd3 {[%emt 0:00:15]} Qxd2+ {[%emt 0:02:42]} 19. Kxd2 {[%emt 0:03:39]} e6 {[%emt 0:02:06]} 20. Nxd4 {[%emt 0:11:01]} Bxd4 {[%emt 0:03:06]} 21. Rxd4 {[%emt 0:00:11]} exd5 {[%emt 0:00:06]} 22. exd5 {[%emt 0:00:14]} Rd6 {[%emt 0:01:40]} 23. Re1 {[%emt 0:05:20]} Rf8 {[%emt 0:05:49]} 24. f4 {[%emt 0:05:23]} Rfd8 {[%emt 0:07:56]} 25. Re5 {[%emt 0:01:01]} Kf7 {[%emt 0:00:19]} 26. Kd3 {[%emt 0:01:40]} b5 {[%emt 0:04:20]} 27. Ke4 {[%emt 0:12:26]} Rb8 {[%emt 0:12:40]} 28. Rd3 {[%emt 0:04:37]} a5 {[%emt 0:03:36]} 29. Kd4 {[%emt 0:03:15]} b4 {[%emt 0:01:09]} 30. Rb3 {[%emt 0:04:01]} Rd7 {[%emt 0:00:31]} 31. g3 {[%emt 0:01:54]} Rc7 {[%emt 0:01:50]} 32. axb4 {[%emt 0:06:23]} axb4 {[%emt 0:00:14]} 33. Re6 {[%emt 0:00:53]} Rc2 {[%emt 0:01:16]} 34. Rc6 {[%emt 0:01:59]} Rd2+ {[%emt 0:00:39]} 35. Kc5 {[%emt 0:01:30]} Rc2+ {[%emt 0:01:00]} 36. Kd6 {[%emt 0:00:56]} Rd2 {[%emt 0:00:38]} 37. Kc7 {[%emt 0:00:36]} Rb5 {[%emt 0:00:17]} 38. d6 {[%emt 0:00:22]} Ke8 {[%emt 0:00:45]} 39. h4 {[%emt 0:01:51]} Rd4 {[%emt 0:00:31]} 40. Re3+ {[%emt 0:01:31]} Kf8 {[%emt 0:00:29]} 41. Re5 {[%emt 0:10:26]} Rbd5 {[%emt 0:05:06]} 42. Rxd5 {[%emt 0:02:23]} Rxd5 {[%emt 0:00:08]} 43. Rb6 {[%emt 0:00:13]} Rc5+ {[%emt 0:01:35]} 44. Kd7 {[%emt 0:01:02]} Rc3 {[%emt 0:01:44]} 45. g4 {[%emt 0:09:09]} b3 {[%emt 0:01:42]} 46. Ke6 {[%emt 0:04:26]} Re3+ {[%emt 0:00:21]} 47. Kf6 {[%emt 0:00:07]} Ke8 {[%emt 0:00:14]} 48. Rb7 {[%emt 0:02:45]} Rd3 {[%emt 0:07:05]} 49. Kg7 {[%emt 0:00:26]} Rxd6 {[%emt 0:01:10]} 50. Rb8+ {[%emt 0:00:44]} Rd8 {[%emt 0:00:26]} 51. Rxb3 {[%emt 0:00:08]} Rd4 {[%emt 0:01:21]} 52. Re3+ {[%emt 0:00:20]} Kd8 {[%emt 0:00:24]} 53. Kxh7 {[%emt 0:02:42]} Rxf4 {[%emt 0:00:14]} 54. g5 {[%emt 0:00:08]} Rxh4+ {[%emt 0:00:10]} 55. Kxg6 {[%emt 0:00:06]} Rg4 {[%emt 0:01:13]} 56. Kf6 {[%emt 0:00:17]} Rf4+ {[%emt 0:00:17]} 57. Kg7 {[%emt 0:00:08]} Rg4 {[%emt 0:00:05]} 58. g6 {[%emt 0:00:05]} Rg1 {[%emt 0:00:14]} 59. Kf7 {[%emt 0:00:08]} Rf1+ {[%emt 0:00:06]} 60. Kg8 {[%emt 0:00:06]} Rg1 {[%emt 0:00:08]} 61. g7 {[%emt 0:00:15]} Kd7 {[%emt 0:00:11]} 62. Rh3 {[%emt 0:01:06]} Ke7 {[%emt 0:02:44]} 63. Kh7 {[%emt 0:01:06]} Kf7 {[%emt 0:00:19]} 64. g8=Q+ {[%emt 0:00:16]} 1-0

[Event "Swiss Championship 2024"]
[Site "Flims"]
[Date "2024.07.17"]
[Round "5.1"]
[White "Wyss, Jonas"]
[Black "Bogner, Sebastian"]
[Result "0-1"]
[ECO "B48"]
[WhiteElo "2291"]
[BlackElo "2547"]
[Annotator "TA"]
[PlyCount "112"]
[EventDate "2024.07.10"]
[EventType "tourn"]
[EventCountry "SUI"]
[SourceTitle "playchess.com"]
[Source "ChessBase"]
[SourceQuality "1"]
[TimeControl "40/5400+30:1800+30"]

{[%evp 14,112,24,13,16,32,18,12,15,25,39,25,40,11,9,1,4,2,37,33,34,0,11,0,0,0,0,-15,0,0,0,0,0,0,0,0,0,0,0,0,0,0,0,0,0,0,0,-12,0,0,0,-14,0,-28,-44,-29,52,-77,-77,-239,-210,-214,-210,-764,-48,-36,-34,-45,-60,-780,-780,-1133,-633,-1016,-1016,-1020,-1012,-1959,-1901,-5673,-5722,-5091,-1033,-6337,-6091,-6379,-4613,-29980,-29981,-29981,-29982,-29982,-29983,-29988,-29989,-29989,-29988,-29988,-29989,-29990,-29991]} 1. e4 {[%emt 0:00:03]} c5 {[%emt 0:00:02]} 2. Nf3 {[%emt 0:00:15]} e6 {[%emt 0:00:04]} 3. d4 {[%emt 0:00:16]} cxd4 {[%emt 0:00:03]} 4. Nxd4 {[%emt 0:00:12]} Nc6 {[%emt 0:00:02]} 5. Nc3 {[%emt 0:00:16]} Qc7 {[%emt 0:00:10]} 6. Be3 {[%emt 0:00:15]} a6 {[%emt 0:00:04]} 7. Qd2 {[%emt 0:00:15]} Nf6 {[%emt 0:00:16]} 8. O-O-O {[%emt 0:00:18]} Be7 {[%emt 0:00:12]} 9. f3 {[%emt 0:00:36]} b5 {[%emt 0:00:41]} 10. Nxc6 {[%emt 0:00:37]} dxc6 {[%emt 0:00:33] The position is equal.} 11. g4 {[%emt 0:00:37]} e5 {[%emt 0:01:29]} 12. h4 {[%emt 0:01:25]} O-O $1 {[%emt 0:04:37]} 13. Qf2 {[%emt 0:04:16]} Rd8 {[%emt 0:05:07]} 14. Rxd8+ {[%emt 0:08:47]} Qxd8 {[%emt 0:00:39]} 15. Bh3 {[%emt 0:02:05]} Nd7 {[%emt 0:35:19][%cal Bf6d7,Bd7f8,Bf8e6][%mdl 32]} 16. g5 {[%emt 0:06:10]} Nf8 {[%emt 0:00:06]} 17. Rd1 {[%emt 0:18:10]} Qc7 {[%emt 0:00:36]} 18. Bb6 {[%emt 0:04:56]} Qb7 {[%emt 0:01:09]} 19. Bxc8 {[%emt 0:00:47]} Rxc8 {[%emt 0:02:54]} 20. Bc5 {[%emt 0:02:20]} Ne6 {[%emt 0:08:42]} 21. Bxe7 {[%emt 0:02:52]} Qxe7 {[%emt 0:00:02]} 22. Qb6 {[%emt 0:02:14]} h6 {[%emt 0:08:07]} 23. gxh6 {[%emt 0:05:26]} g6 {[%emt 0:00:29]} 24. Qxa6 {[%emt 0:11:30]} Rc7 {[%emt 0:01:18]} 25. a4 {[%emt 0:07:48]} bxa4 {[%emt 0:04:28]} 26. Qa5 {[%emt 0:05:37]} a3 {[%emt 0:09:13]} (26... Nd4 {with more complications.} 27. f4 a3 28. Qxa3 Qxh4 29. Kb1 Qh2) 27. Qxa3 {[%emt 0:04:55]} Qxh4 {[%emt 0:00:58]} 28. Qd6 {[%emt 0:00:53]} Qxh6+ {[%emt 0:02:18]} 29. Kb1 {[%emt 0:00:10]} Qf4 {[%emt 0:01:37]} 30. Rd3 {[%emt 0:00:26]} Rc8 {[%emt 0:03:01]} (30... Qh2 {is more complex.} 31. Na4 Rc8 32. Qd7 Rb8) 31. Qd7 {[%emt 0:05:42]} Rc7 {[%emt 0:02:50]} 32. Qd6 {[%emt 0:00:21]} Qg3 {[%emt 0:02:05]} (32... Qh2 {feels hotter.} 33. Na4 Rc8 34. Qd7 Rd8) 33. b3 {[%emt 0:02:31]} Rc8 {[%emt 0:01:15]} 34. Kb2 {[%emt 0:01:12]} g5 {[%emt 0:03:06]} (34... Rd8 $11 35. Qxc6 Rxd3 36. cxd3 Qxf3) 35. Qd7 {[%emt 0:01:14]} (35. Qe7 $1 $14) 35... Rd8 $17 {[%emt 0:01:02]} 36. Qxc6 {[%emt 0:00:09]} (36. Qxe6 $17 fxe6 37. Rxd8+ Kf7 38. Rd3) 36... Rxd3 $19 {[%emt 0:00:07]} 37. cxd3 {[%emt 0:00:03]} Qxf3 $17 {[%emt 0:00:19][%cal Og5g4][%mdl 4096] Endgame. White must now prevent ...g4! KQN-KQN} 38. Qb5 $2 {[%emt 0:01:52]} (38. Nd5 Kg7 (38... Qxd3 $2 39. Qc3 $19) 39. Kc3) 38... Qf4 $2 {[%emt 0:02:15]} (38... g4 $19 {Hoping for ...g3.} 39. d4 g3 (39... Nxd4 $2 40. Qxe5 g3 41. Qg5+ Kh7 42. Qh4+ Kg6 43. Qd8 $19) (39... exd4 $2 40. Nd5 $19)) 39. Nd5 $15 {[%emt 0:01:15]} Qf2+ {[%emt 0:00:39]} 40. Ka3 {[%emt 0:01:08]} Kg7 {[%emt 0:01:58]} 41. Qb6 $2 {[%emt 0:11:47][%mdl 8192] Black keeps a firm grip on the game.} (41. Qb8 $15) 41... Qxb6 $19 {[%emt 0:05:23]} 42. Nxb6 {[%emt 0:00:03] KN-KN} g4 {[%emt 0:02:02]} 43. Nd5 {[%emt 0:01:40]} g3 {[%emt 0:02:03] [#] ( -> ...g2)} 44. Ne3 {[%emt 0:00:09]} Kf6 {[%emt 0:04:20] ...Nf4 would now be deadly.} 45. b4 {[%emt 0:02:16]} Nf4 {[%emt 0:07:29]} 46. b5 {[%emt 0:00:26] [#]} Ke6 $1 {[%emt 0:00:17][%cal Og3g2]} (46... Nxd3 47. b6 Nc5 48. Kb4 $11) 47. Kb4 {[%emt 0:01:52]} Kd7 {[%emt 0:05:11][%cal Og3g2] Strongly threatening ...g2!} 48. Kc5 {[%emt 0:01:16]} Nxd3+ {[%emt 0:01:04]} 49. Kb6 {[%emt 0:08:54]} Nf2 {[%emt 0:01:12]} 50. Ka7 {[%emt 0:00:33]} Nxe4 {[%emt 0:00:06] Black mates.} 51. b6 {[%emt 0:00:09]} Nd6 {[%emt 0:00:28]} 52. Ka6 {[%emt 0:05:19]} Ke6 {[%emt 0:02:43]} 53. Nc4 {[%emt 0:00:46]} g2 {[%emt 0:00:03]} (53... Nxc4 54. b7 g2 55. b8=Q $19) 54. Nxd6 {[%emt 0:00:11]} g1=Q {[%emt 0:00:05]} (54... g1=B $2 {is the wrong capture.} 55. b7 $18) 55. b7 {[%emt 0:00:11]} Qa1+ {[%emt 0:00:30]} 56. Kb6 {[%emt 0:00:08]} Qd4+ {[%emt 0:00:02] Weighted Error Value: White=0.69/Black=0.17 (very precise) .  Loses game:     	White=2     	---        Missed win:     	---       	Black=1      Mistake:       	White=2     	Black=1      Inaccurate:     	White=2     	Black=1      OK:         	White=18    	Black=14     Best:        	---       	Black=4      Strong:       	---       	Black=1} ({Weaker is} 56... Kxd6 57. b8=Q+ Ke6 58. Qe8+ Kf6 59. Qh8+ Kg5 60. Qg7+ Kf4 61. Qxf7+ Ke3 62. Qb3+ Kd2 63. Kc6 $17) 0-1

[Event "Swiss Championship 2024"]
[Site "Flims"]
[Date "2024.07.17"]
[Round "5.2"]
[White "Kurmann, Oliver"]
[Black "Stijve, Theo"]
[Result "0-1"]
[ECO "B53"]
[WhiteElo "2428"]
[BlackElo "2328"]
[Annotator "TA"]
[PlyCount "108"]
[EventDate "2024.07.10"]
[EventType "tourn"]
[EventCountry "SUI"]
[SourceTitle "playchess.com"]
[Source "ChessBase"]
[SourceQuality "1"]
[TimeControl "40/5400+30:1800+30"]

{[%evp 30,108,128,138,140,143,147,145,141,141,135,134,139,148,139,100,106,102,112,102,106,109,115,104,122,119,170,53,55,57,73,72,64,70,95,22,41,31,47,-53,-56,-57,-57,-54,-69,-106,-60,-347,-150,-131,-132,-101,-49,-51,0,-29,-29,-49,-29,-30,-30,-29970,-29971,-29976,-29977,-29975,-29978,-29978,-29977,-29979,-29980,-29981,-29982,-29982,-29983,-29991,-29992,-29992,-29991,-29994,-1000]} 1. e4 {[%emt 0:00:03]} c5 {[%emt 0:00:06]} 2. Nf3 {[%emt 0:00:08]} Nc6 {[%emt 0:00:06]} 3. Bb5 {[%emt 0:00:13]} Nf6 {[%emt 0:00:08]} 4. Nc3 {[%emt 0:01:19]} d6 {[%emt 0:00:08]} 5. d4 {[%emt 0:04:30]} cxd4 {[%emt 0:01:03]} 6. Qxd4 {[%emt 0:00:02]} Bd7 {[%emt 0:02:07]} 7. Bxc6 {[%emt 0:00:08]} Bxc6 {[%emt 0:00:14]} 8. Bg5 {[%emt 0:00:06]} e6 {[%emt 0:01:58]} 9. O-O-O {[%emt 0:00:10]} Be7 {[%emt 0:01:16]} 10. Rhe1 {[%emt 0:00:12]} Qb6 {[%emt 0:10:26] B53: Sicilian: 2...d6: Lines with Qxd4.} 11. Qxb6 {[%emt 0:11:23]} axb6 {[%emt 0:00:27]} 12. Nd4 {[%emt 0:17:51]} Ra5 {[%emt 0:16:11]} 13. Bd2 {[%emt 0:02:36]} Ng4 $146 {[%emt 0:07:31]} ({Predecessor:} 13... Ra8 14. f3 O-O 15. Kb1 Rfd8 16. Be3 Nd7 17. Ndb5 Nc5 18. Bf4 e5 19. Be3 Rd7 {1-0 Tadic,A (1677)-Siekanska,M (2029) EU-ch U16 Girls 30th 2022 (1)}) 14. Re2 {[%emt 0:02:04]} g5 {[%emt 0:09:52]} 15. f3 {[%emt 0:10:44]} Ne5 {[%emt 0:00:40]} 16. b3 {[%emt 0:00:04]} b5 {[%emt 0:14:01]} 17. Kb2 $1 {[%emt 0:15:03]} b4 {[%emt 0:13:43]} 18. Nb1 {[%emt 0:00:28]} d5 {[%emt 0:00:21] [#]} 19. a3 $1 {[%emt 0:04:10]} (19. exd5 Rxd5 20. c3 O-O $11) 19... dxe4 {[%emt 0:07:27]} 20. Bxb4 {[%emt 0:05:22]} Ra8 {[%emt 0:08:15]} 21. Bxe7 {[%emt 0:02:26]} Kxe7 {[%emt 0:00:20]} 22. Nxc6+ {[%emt 0:00:01]} Nxc6 {[%emt 0:00:39]} 23. Rxe4 {[%emt 0:00:02]} Rhd8 {[%emt 0:00:33]} 24. Ree1 {[%emt 0:01:28]} f5 {[%emt 0:00:46]} 25. a4 {[%emt 0:02:03]} h5 {[%emt 0:01:10]} 26. Nc3 {[%emt 0:03:16]} Kf6 {[%emt 0:01:10]} 27. Nb5 {[%emt 0:00:16]} h4 {[%emt 0:01:25]} (27... Rxd1 $16 28. Rxd1 Rd8 29. Rxd8 Nxd8) 28. Nc7 {[%emt 0:05:17]} ({White should try} 28. Nd6 $18 h3 29. gxh3 (29. Nxb7 Rxd1 30. Rxd1 hxg2 $14)) 28... Rxd1 $14 {[%emt 0:00:17]} 29. Rxd1 {[%emt 0:00:02]} Rc8 {[%emt 0:00:18]} 30. Nb5 {[%emt 0:00:07]} h3 {[%emt 0:00:48]} 31. gxh3 {[%emt 0:03:30]} Ne5 $1 {[%emt 0:00:32]} 32. Rf1 {[%emt 0:06:35]} (32. Nd6 $16 Rb8 33. h4 Nxf3 34. hxg5+ Nxg5 35. Rd4) 32... Rh8 $11 {[%emt 0:00:52]} 33. Nd6 {[%emt 0:02:47]} b6 {[%emt 0:01:07]} 34. Ka3 {[%emt 0:02:16]} ({White should play} 34. h4 $14 Ke7 35. Nb5 (35. Rd1 Rd8 $11) 35... Rxh4 36. Kc3) 34... Rxh3 $15 {[%emt 0:00:14]} 35. f4 {[%emt 0:00:34]} gxf4 {[%emt 0:00:39]} 36. Rxf4 {[%emt 0:00:00]} Rxh2 {[%emt 0:00:14]} 37. c4 {[%emt 0:00:13]} Rh3 {[%emt 0:00:54]} ({Better is} 37... Rh1 $17 {Strongly threatening ...Nd3.} 38. Ne4+ Ke7) 38. Nc8 $2 {[%emt 0:01:21][%mdl 8192] [#]} (38. c5 $1 $15 Nc6 (38... bxc5 39. Ne4+ Kg6 40. Nxc5 $11) 39. Nxf5 (39. cxb6 $2 Ke5 $19)) 38... Nd3 {[%emt 0:00:51]} (38... Nf3 $1 $19 {has better winning chances.} 39. Nxb6 Ke5 40. Rxf3 Rxf3) 39. Rf1 $17 {[%emt 0:00:14]} Nc5 {[%emt 0:00:38]} 40. Rb1 {[%emt 0:00:02]} Nd7 {[%emt 0:00:27]} (40... f4 $17 {Hoping for ...Kg5.} 41. Kb4 Nd3+ 42. Kb5 e5 43. Nxb6 (43. Kxb6 e4 $17) 43... e4) 41. Rd1 $15 {[%emt 0:02:10]} Nc5 {[%emt 0:03:01]} 42. Rb1 $1 {[%emt 0:00:17]} f4 {[%emt 0:08:44]} 43. Nxb6 {[%emt 0:10:12]} Rxb3+ {[%emt 0:02:58]} 44. Rxb3 {[%emt 0:00:06]} Nxb3 {[%emt 0:00:07]} 45. Kxb3 $4 {[%emt 0:06:13][%mdl 8192]} (45. c5 $11 Nxc5 46. Kb4 Na6+ (46... Nxa4 47. Kxa4 Kg5 48. Kb4 $11) 47. Kc3 (47. Kb5 e5 $11)) 45... f3 {[%emt 0:00:10]} 46. a5 {[%emt 0:00:15]} f2 {[%emt 0:00:07]} 47. a6 {[%emt 0:00:33]} f1=Q {[%emt 0:00:08]} (47... f1=B $2 {loses.} 48. a7 Bg2 49. Kb4 $18 (49. a8=B Bf1 $18) (49. a8=Q Bxa8 50. Nxa8 e5 51. c5 e4 52. Kc3 Ke7 53. c6 e3) (49. a8=R Ke5 $18)) 48. Kb4 {[%emt 0:00:06]} Qa1 {[%emt 0:03:19]} 49. Kb5 {[%emt 0:00:26]} Ke5 {[%emt 0:02:26]} 50. c5 {[%emt 0:00:41]} Kd4 {[%emt 0:01:14]} 51. Nd7 {[%emt 0:02:28]} e5 {[%emt 0:03:32]} 52. Nxe5 {[%emt 0:06:09]} Kxe5 {[%emt 0:00:28]} 53. Kb6 {[%emt 0:00:05]} Qh1 {[%emt 0:01:04]} 54. Ka7 {[%emt 0:01:48]} Qc6 {[%emt 0:00:26]} 0-1

[Event "Swiss Championship 2024"]
[Site "Flims"]
[Date "2024.07.17"]
[Round "5.3"]
[White "Georgiadis, Ioannis"]
[Black "Peng, Li Min"]
[Result "1/2-1/2"]
[ECO "E05"]
[WhiteElo "2483"]
[BlackElo "2562"]
[Annotator "TA"]
[PlyCount "61"]
[EventDate "2024.07.10"]
[EventType "tourn"]
[EventCountry "SUI"]
[SourceTitle "playchess.com"]
[Source "ChessBase"]
[SourceQuality "1"]
[TimeControl "40/5400+30:1800+30"]

{[%evp 12,61,29,0,45,52,30,28,34,16,13,0,0,8,7,0,6,-2,0,0,0,0,0,0,0,0,8,0,0,0,0,0,0,0,4,0,0,0,0,0,0,-20,-14,-37,-50,-50,-45,-59,-95,-70,-43,-62]} 1. d4 {[%emt 0:00:03]} Nf6 {[%emt 0:00:07]} 2. c4 {[%emt 0:00:17]} e6 {[%emt 0:00:06]} 3. Nf3 {[%emt 0:00:10]} d5 {[%emt 0:00:05]} 4. g3 {[%emt 0:00:05]} Be7 {[%emt 0:00:03]} 5. Bg2 {[%emt 0:00:10]} O-O {[%emt 0:00:06]} 6. O-O {[%emt 0:00:22]} dxc4 {[%emt 0:00:03]} 7. Qc2 {[%emt 0:02:00]} Na6 {[%emt 0:00:05]} 8. Qxc4 {[%emt 0:01:48]} Qd5 {[%emt 0:00:06]} 9. Nbd2 {[%emt 0:02:12]} c5 {[%emt 0:04:55] White has an edge.} 10. Rd1 {[%emt 0:06:28]} Rd8 {[%emt 0:05:11]} 11. b3 {[%emt 0:08:33]} (11. Qxd5 {simplifies} Nxd5 12. Nb3 Bd7 13. Bg5) 11... cxd4 {[%emt 0:00:10]} 12. Bb2 {[%emt 0:03:03]} d3 {[%emt 0:01:43]} 13. e3 {[%emt 0:13:10]} b5 {[%emt 0:04:51]} 14. Qxd5 {[%emt 0:03:43]} Nxd5 {[%emt 0:00:05]} 15. Nd4 {[%emt 0:04:16]} Bd7 {[%emt 0:07:11] Wards off Nc6} 16. Bxd5 {[%emt 0:08:39]} exd5 {[%emt 0:00:05]} 17. N2f3 {[%emt 0:00:24][%cal Of3e5]} Nb4 {[%emt 0:00:08]} 18. Ba3 {[%emt 0:06:43]} f6 {[%emt 0:02:54] Against Ne5} 19. Ne1 {[%emt 0:06:09] Excellent horsemanship.} (19. Bxb4 {simplifies} Bxb4 20. Rxd3 Rac8 21. a3) 19... Rdc8 {[%emt 0:00:06][%cal Ob4c2]} 20. Nxd3 {[%emt 0:03:25]} Nxd3 {[%emt 0:00:09]} 21. Bxe7 {[%emt 0:00:05]} Ne5 {[%emt 0:00:43]} 22. Kg2 {[%emt 0:00:40]} Kf7 {[%emt 0:01:41]} 23. Ba3 {[%emt 0:01:12]} a5 {[%emt 0:00:28]} 24. Rac1 {[%emt 0:04:27]} b4 {[%emt 0:00:05]} 25. Rxc8 {[%emt 0:02:24]} Rxc8 {[%emt 0:00:07]} 26. Bb2 {[%emt 0:03:58]} a4 {[%emt 0:00:04]} 27. h3 {[%emt 0:02:21]} a3 {[%emt 0:01:28]} 28. Bc1 {[%emt 0:00:25] [#]} Nd3 $1 {[%emt 0:01:18]} 29. Bxa3 {[%emt 0:05:14]} (29. Rxd3 Rxc1) 29... Bxh3+ {[%emt 0:00:44]} 30. Kg1 {[%emt 0:00:18]} Nxf2 {[%emt 0:00:54]} 31. Kxf2 {[%emt 0:00:11] Weighted Error Value: White=0.05 (flawless) /Black=0.04 (flawless) .  Inaccurate:     	---       	Black=1      OK:         	White=12    	Black=13     Best:        	White=1     	Black=1      Brilliant:      	---       	Black=1} 1/2-1/2

[Event "Swiss Championship 2024"]
[Site "Flims"]
[Date "2024.07.17"]
[Round "5.4"]
[White "Klauser, Markus"]
[Black "Fischer, Daniel"]
[Result "0-1"]
[ECO "B31"]
[WhiteElo "2358"]
[BlackElo "2372"]
[Annotator "TA"]
[PlyCount "86"]
[EventDate "2024.07.10"]
[EventType "tourn"]
[EventCountry "SUI"]
[SourceTitle "playchess.com"]
[Source "ChessBase"]
[SourceQuality "1"]
[TimeControl "40/5400+30:1800+30"]

{[%evp 10,86,4,9,36,32,33,29,9,0,0,0,10,15,11,-10,0,0,0,0,0,0,13,12,19,8,0,-19,-17,-29,7,0,-10,-20,-6,-77,-65,-172,-156,-166,-171,-175,-120,-218,-216,-234,-226,-246,-253,-376,-389,-557,-543,-612,-498,-481,-473,-614,-603,-614,-609,-604,-562,-593,-599,-615,-604,-666,-626,-1060,-1009,-1066,-1067,-890,-2037,-2858,-2516,-2057,-1891]} 1. e4 {[%emt 0:00:03]} c5 {[%emt 0:00:05]} 2. Nf3 {[%emt 0:00:07]} Nc6 {[%emt 0:00:06]} 3. Bb5 {[%emt 0:00:06]} g6 {[%emt 0:00:20]} 4. Bxc6 {[%emt 0:00:08]} bxc6 {[%emt 0:00:15]} 5. O-O {[%emt 0:00:17]} Bg7 {[%emt 0:00:13]} 6. Re1 {[%emt 0:00:20]} Qc7 {[%emt 0:00:25]} 7. h3 {[%emt 0:02:45]} d6 {[%emt 0:02:31]} 8. c3 {[%emt 0:01:09]} Nf6 {[%emt 0:03:23] White has an edge.} 9. d4 {[%emt 0:00:22]} cxd4 {[%emt 0:00:22]} 10. cxd4 {[%emt 0:00:07]} O-O {[%emt 0:01:16]} 11. Nc3 {[%emt 0:00:22]} c5 {[%emt 0:02:26]} 12. d5 {[%emt 0:26:25]} Nd7 {[%emt 0:05:29]} 13. Bg5 {[%emt 0:02:04]} Re8 {[%emt 0:03:20]} 14. Qd2 {[%emt 0:00:29]} Rb8 {[%emt 0:01:39]} 15. Rac1 {[%emt 0:01:11]} Ba6 {[%emt 0:12:23]} 16. b3 {[%emt 0:01:37]} Qa5 {[%emt 0:03:25]} 17. Bh6 {[%emt 0:02:59] White wants to play Bxg7.} Bh8 {[%emt 0:01:18]} 18. h4 {[%emt 0:07:39]} Rbc8 {[%emt 0:06:47]} 19. h5 {[%emt 0:04:17]} c4 {[%emt 0:03:46] [#] Hoping for ...cxb3.} 20. hxg6 {[%emt 0:00:49]} hxg6 {[%emt 0:00:13]} 21. Nd4 {[%emt 0:03:12]} Ne5 {[%emt 0:04:10] Prevents Nc6} 22. b4 {[%emt 0:01:47]} Qxb4 $17 {[%emt 0:04:34]} 23. Nc6 {[%emt 0:16:04]} Nxc6 $19 {[%emt 0:03:41]} 24. dxc6 {[%emt 0:00:13]} Rxc6 {[%emt 0:01:01]} 25. Re3 {[%emt 0:00:30]} Qc5 {[%emt 0:06:46]} (25... Bc8 $19 26. Rb1 Bxc3) 26. Rd1 {[%emt 0:09:25]} (26. Nd5 $17 {keeps fighting.}) 26... Bc8 {[%emt 0:04:29]} 27. Rg3 {[%emt 0:00:23]} Qh5 {[%emt 0:02:31]} 28. Bg5 {[%emt 0:08:21]} Be6 {[%emt 0:06:44]} 29. Nd5 {[%emt 0:00:48]} (29. Re1 $142) 29... Bxd5 {[%emt 0:05:43]} 30. exd5 {[%emt 0:00:06]} (30. Rh3 {is the only way for White.} c3 31. Qxd5) 30... c3 {[%emt 0:01:33] Black is clearly winning.} 31. Qc1 {[%emt 0:00:26]} Rc4 {[%emt 0:02:27]} 32. Rh3 {[%emt 0:00:39]} Qg4 {[%emt 0:01:47]} 33. Re1 {[%emt 0:04:31]} c2 {[%emt 0:02:57]} 34. Rh4 {[%emt 0:02:26]} Qc8 {[%emt 0:01:42]} 35. Rh3 {[%emt 0:00:14]} Rb4 {[%emt 0:03:20] Strongly threatening ...Rb1.} 36. Qa3 {[%emt 0:04:56]} Rb1 {[%emt 0:00:59]} 37. Bc1 {[%emt 0:00:03]} Qf5 {[%emt 0:01:23][%cal Oh8b2]} 38. Qa4 {[%emt 0:00:31]} Reb8 {[%emt 0:00:50] ...Bb2 would now be deadly.} 39. Qh4 {[%emt 0:00:10]} Bg7 {[%emt 0:02:06][%cal Ob1c1]} 40. Qh7+ {[%emt 0:01:12]} Kf8 {[%emt 0:00:03][%cal Ob1c1] ( -> ...Rxc1!)} 41. Qh4 {[%emt 0:10:53]} g5 {[%emt 0:04:45]} 42. Qc4 {[%emt 0:01:20] [#]} Rxc1 $1 {[%emt 0:06:38]} 43. Rxc1 {[%emt 0:00:07]} Rb1 {[%emt 0:00:09] Weighted Error Value: White=0.37/Black=0.14 (very precise) .  Mistake:       	White=5     	Black=1      Inaccurate:     	---       	Black=1      OK:         	White=12    	Black=13     Best:        	---       	Black=2} 0-1